bitfinex-derivatives/quotes_BTCF0:USTF0_20240917
["timestamp","ask_amount","ask_price","bid_price","bid_amount"]
[1726583216772,0.05934641,60425.0,60421.0,0.8908]
[1726583216963,0.05934641,60424.0,60421.0,0.3608]
[1726583217166,0.0024827,60430.0,60417.0,0.56896073]
[1726583217167,0.423726,60425.0,60417.0,0.56896073]
[1726583217375,0.0024827,60430.0,60417.0,0.56672073]
[1726583217376,0.00493007,60423.0,60417.0,0.56672073]
[1726583217770,0.05934641,60422.0,60417.0,0.56672073]
[1726583218072,0.3608,60427.0,60417.0,0.56672073]
[1726583218073,0.05934641,60421.0,60417.0,0.56672073]
[1726583218372,0.05934641,60420.0,60417.0,0.03271266]
[1726583218570,0.05934641,60419.0,60417.0,0.03271266]
[1726583218877,0.05934641,60418.0,60417.0,0.03022996]
[1726583219176,0.55590641,60418.0,60417.0,0.03022996]
[1726583219372,1.15755009,60418.0,60417.0,0.03022996]
[1726583219673,0.49656,60417.0,60408.0,0.3608]
[1726583219974,0.3608,60410.0,60406.0,0.00248318]
[1726583220273,0.05934641,60409.0,60406.0,0.00248318]
[1726583220470,0.25585643,60409.0,60406.0,0.00248318]
[1726583220668,0.082758,60408.0,60406.0,0.00248318]
[1726583220872,0.05934641,60407.0,60394.0,0.3608]
[1726583221075,0.3608,60403.0,60394.0,0.3608]
[1726583221277,0.05934641,60402.0,60394.0,0.3608]
[1726583221477,0.05934641,60401.0,60394.0,0.3608]
[1726583221666,0.05934641,60401.0,60400.0,0.3608]
[1726583221971,0.00248377,60407.0,60400.0,0.3608]
[1726583222367,0.3608,60409.0,60400.0,0.3608]
[1726583222566,0.3608,60409.0,60400.0,0.443568]
[1726583222766,0.3608,60404.0,60399.0,0.5322]
[1726583223083,0.3608,60404.0,60396.0,0.0024832]
[1726583223283,0.45969166,60403.0,60396.0,0.0024832]
[1726583223466,0.05934641,60402.0,60396.0,0.0024832]
[1726583223666,0.3608,60397.0,60396.0,0.0024832]
[1726583223975,0.3608,60397.0,60382.0,0.53]
[1726583223976,0.61545004,60397.0,60382.0,0.53]
[1726583224275,0.3608,60391.0,60380.0,0.3608]
[1726583224679,0.49697653,60390.0,60380.0,0.36008]
[1726583224882,0.49697653,60390.0,60381.0,0.082794]
[1726583225081,0.05942348,60389.0,60376.0,0.082801]
[1726583225375,0.3608,60378.0,60370.0,0.00212]
[1726583225574,0.3608,60378.0,60361.0,0.36157294]
[1726583225575,0.05942348,60378.0,60374.0,0.3608]
[1726583225789,0.49768956,60377.0,60374.0,0.3608]
[1726583225972,0.3608,60375.0,60371.0,0.00100691]
[1726583226167,0.05942348,60376.0,60371.0,0.00100691]
[1726583226168,0.3608,60372.0,60371.0,0.00100691]
[1726583226368,1.02694108,60379.0,60371.0,0.00100691]
[1726583226369,0.25738334,60374.0,60371.0,0.36180691]
[1726583226671,0.24827245,60375.0,60371.0,0.44461491]
[1726583226871,0.01125848,60373.0,60371.0,0.44461491]
[1726583227174,0.4288,60379.0,60371.0,0.44461491]
[1726583227175,0.30688323,60377.0,60371.0,0.36180691]
[1726583227378,0.24729218,60372.0,60371.0,0.36170691]
[1726583227581,0.49570438,60375.0,60374.0,0.012]
[1726583227878,0.42023863,60375.0,60374.0,0.012]
[1726583228082,1.95307712,60375.0,60374.0,0.012]
[1726583228374,1.95307712,60375.0,60371.0,0.00090691]
[1726583228581,0.85619712,60375.0,60371.0,0.00590691]
[1726583229077,0.49692,60374.0,60371.0,0.00590691]
[1726583229280,0.8908,60373.0,60365.0,0.00238487]
[1726583229470,0.3608,60366.0,60365.0,0.00238487]
[1726583229874,0.86032502,60366.0,60365.0,0.00238487]
[1726583230073,1.95728502,60366.0,60365.0,0.00238487]
[1726583230474,1.95728502,60366.0,60365.0,0.00228487]
[1726583230781,1.95728502,60366.0,60352.0,0.3608]
[1726583230782,1.95728502,60366.0,60353.0,0.082833]
[1726583231080,0.86032502,60366.0,60352.0,0.3608]
[1726583231286,0.497,60365.0,60352.0,0.3608]
[1726583231576,0.3608,60366.0,60361.0,0.00067294]
[1726583231770,0.49609934,60364.0,60361.0,0.00067294]
[1726583231971,0.3608,60366.0,60361.0,0.00067294]
[1726583231972,0.49609934,60365.0,60361.0,0.00067294]
[1726583232168,0.24735738,60363.0,60361.0,0.00067294]
[1726583232574,0.61028286,60362.0,60361.0,0.00567294]
[1726583232777,0.001,60365.0,60361.0,0.08839494]
[1726583232980,0.001,60365.0,60362.0,0.08282]
[1726583233178,0.24714347,60363.0,60362.0,0.082821]
[1726583233379,0.27932458,60364.0,60361.0,0.00557294]
[1726583233582,0.24948286,60364.0,60361.0,0.00557294]
[1726583233772,0.24714347,60363.0,60361.0,0.00557294]
[1726583234174,0.24982801,60362.0,60361.0,0.00557294]
[1726583234773,0.49720471,60362.0,60361.0,0.00557294]
[1726583234981,2.48500471,60362.0,60361.0,0.00557294]
[1726583235281,0.082829,60356.0,60342.0,0.3608]
[1726583235475,2.48600471,60362.0,60334.0,0.082859]
[1726583235476,0.53,60350.0,60334.0,0.3608]
[1726583235677,0.3608,60343.0,60334.0,0.3608]
[1726583236076,0.24704553,60342.0,60334.0,0.3608]
[1726583236379,0.3608,60343.0,60334.0,0.3608]
[1726583236592,0.24819933,60342.0,60334.0,0.3608]
[1726583236777,0.082849,60341.0,60334.0,0.3608]
[1726583236978,0.49658077,60342.0,60334.0,0.3608]
[1726583237279,0.49593771,60340.0,60334.0,0.3608]
[1726583237483,0.3608,60343.0,60334.0,0.3608]
[1726583237484,0.49593771,60341.0,60334.0,0.3608]
[1726583237681,0.973647,60343.0,60334.0,0.3608]
[1726583237682,0.2487524,60339.0,60334.0,0.3608]
[1726583237882,0.24773838,60339.0,60330.0,0.00248591]
[1726583238088,0.08285,60341.0,60330.0,0.00248591]
[1726583238089,0.3608,60335.0,60330.0,0.00248591]
[1726583238293,0.49649078,60338.0,60334.0,0.3608]
[1726583238487,0.49649078,60338.0,60330.0,0.00248591]
[1726583238488,0.24773838,60338.0,60333.0,0.3608]
[1726583238787,0.24983998,60341.0,60333.0,0.3608]
[1726583238985,0.24983998,60337.0,60333.0,0.3608]
[1726583239191,0.2480979,60337.0,60330.0,0.00248591]
[1726583239392,0.3608,60336.0,60330.0,0.00248591]
[1726583239592,0.478431,60355.0,60330.0,0.00248591]
[1726583239593,0.01,60468.0,60335.0,0.8908]
[1726583239783,5.4256,60847.0,60391.0,0.00248382]
[1726583239784,0.3608,60421.0,60391.0,0.00248382]
[1726583239978,0.53,60409.0,60405.0,0.3608]
[1726583240191,0.49707991,60399.0,60395.0,0.3608]
[1726583240494,0.53,60409.0,60398.0,0.3608]
[1726583240495,0.00248409,60403.0,60398.0,0.3608]
[1726583240692,0.00248409,60403.0,60398.0,0.7216]
[1726583240892,0.74547814,60402.0,60398.0,0.3608]
[1726583241202,0.99167598,60402.0,60398.0,0.3608]
[1726583241388,0.99167598,60402.0,60388.0,0.3608]
[1726583241389,0.49668,60401.0,60388.0,0.3608]
[1726583241594,0.49499598,60402.0,60400.0,0.3608]
[1726583241792,0.00348409,60403.0,60400.0,0.3608]
[1726583241988,0.49804786,60401.0,60400.0,0.3608]
[1726583242388,0.14811424,60402.0,60400.0,0.3608]
[1726583242592,0.99228156,60401.0,60400.0,0.3608]
[1726583242993,0.49560156,60401.0,60400.0,0.3608]
[1726583243306,0.99228156,60401.0,60400.0,0.3608]
[1726583243487,0.24673734,60401.0,60400.0,0.3608]
[1726583243687,0.24673734,60401.0,60400.0,0.8908]
[1726583243898,0.24673734,60401.0,60400.0,0.3608]
[1726583244599,0.14839823,60402.0,60400.0,0.3608]
[1726583244800,0.00248409,60403.0,60400.0,0.8908]
[1726583245005,0.00248424,60414.0,60400.0,0.8908]
[1726583245006,0.00248424,60414.0,60402.0,0.082766]
[1726583245299,0.00248424,60414.0,60400.0,0.8998]
[1726583245300,0.53,60409.0,60405.0,0.3608]
[1726583245495,0.05940595,60408.0,60405.0,0.3608]
[1726583245698,0.80458935,60408.0,60405.0,0.3608]
[1726583245893,0.55604595,60407.0,60405.0,0.3608]
[1726583246089,0.05940595,60406.0,60405.0,0.3608]
[1726583246397,1.05094301,60406.0,60405.0,0.3608]
[1726583246593,1.65094301,60406.0,60405.0,0.3608]
[1726583246789,0.55430301,60406.0,60405.0,0.3608]
[1726583248403,0.56830301,60406.0,60405.0,0.3618]
[1726583248791,1.66494301,60406.0,60405.0,0.3618]
[1726583248992,2.02574301,60406.0,60405.0,0.001]
[1726583249202,2.09372211,60406.0,60405.0,0.001]
[1726583249400,0.53,60403.0,60398.0,0.3608]
[1726583249598,0.14217295,60402.0,60398.0,0.3608]
[1726583249799,0.53921452,60402.0,60398.0,0.3608]
[1726583250000,0.05940595,60401.0,60398.0,0.3608]
[1726583250404,0.49762168,60400.0,60398.0,0.3608]
[1726583250604,0.05940595,60399.0,60398.0,0.3608]
[1726583251027,0.46000813,60399.0,60398.0,0.3608]
[1726583251412,0.46000813,60399.0,60398.0,0.3618]
[1726583251612,0.40060218,60399.0,60398.0,0.3618]
[1726583252122,0.40060218,60399.0,60398.0,0.3608]
[1726583252318,0.40660218,60399.0,60398.0,0.3618]
[1726583253713,0.46601876,60399.0,60398.0,0.3618]
[1726583253912,0.4851094,60399.0,60398.0,1.45852]
[1726583254113,0.00248329,60424.0,60398.0,2.34932]
[1726583254324,0.00248329,60424.0,60421.0,0.3608]
[1726583254531,0.53,60423.0,60421.0,0.3608]
[1726583254714,1.23477952,60423.0,60405.0,0.3608]
[1726583255024,0.53,60410.0,60405.0,0.3608]
[1726583255221,0.24915727,60422.0,60409.0,0.3608]
[1726583255222,0.00248346,60414.0,60409.0,0.3608]
[1726583255440,0.08523346,60414.0,60409.0,0.3608]
[1726583255721,0.44945932,60413.0,60409.0,0.3608]
[1726583255923,0.44945932,60413.0,60404.0,0.3608]
[1726583256518,0.082754,60411.0,60404.0,0.3608]
[1726583256931,0.03123432,60410.0,60404.0,0.3608]
[1726583257226,0.28055492,60410.0,60409.0,0.001]
[1726583257523,1.8759206,60410.0,60396.0,0.3608]
[1726583257726,0.05940459,60409.0,60393.0,0.3608]
[1726583258030,0.02712378,60410.0,60409.0,0.082756]
[1726583258223,0.00948346,60414.0,60409.0,0.3608]
[1726583258614,0.005,60410.0,60409.0,0.3608]
[1726583260424,0.005,60410.0,60409.0,0.443556]
[1726583260739,0.01048346,60414.0,60410.0,0.082754]
[1726583261026,0.22634066,60413.0,60409.0,0.3618]
[1726583261527,0.008,60410.0,60409.0,0.3618]
[1726583262428,0.92161,60445.0,60428.0,0.08273]
[1726583262633,0.008,60442.0,60437.0,0.3608]
[1726583262823,0.008,60440.0,60437.0,0.3608]
[1726583263325,0.92161,60445.0,60437.0,0.3608]
[1726583263326,0.17786519,60444.0,60437.0,0.3608]
[1726583263624,0.92161,60445.0,60443.0,0.8908]
[1726583263625,0.92961,60445.0,60443.0,0.8908]
[1726583263830,0.008,60444.0,60443.0,0.97351]
[1726583264027,0.18668641,60444.0,60443.0,0.97351]
[1726583264229,0.92161,60445.0,60444.0,0.49632]
[1726583264230,0.44389641,60445.0,60444.0,0.49632]
[1726583264734,0.44389641,60445.0,60444.0,1.09632]
[1726583265326,0.44389641,60445.0,60444.0,0.49632]
[1726583266027,0.44389641,60445.0,60444.0,1.09632]
[1726583266627,0.50325203,60445.0,60444.0,1.09632]
[1726583266935,0.87205203,60445.0,60443.0,0.00212]
[1726583267120,0.87205203,60445.0,60441.0,0.3608]
[1726583267121,0.08271,60443.0,60441.0,0.3608]
[1726583267323,0.008,60435.0,60434.0,0.3608]
[1726583267731,0.69729172,60435.0,60423.0,0.36328247]
[1726583268037,0.69729172,60435.0,60429.0,0.53]
[1726583268038,0.05935562,60434.0,60429.0,0.53]
[1726583268224,0.26487566,60439.0,60433.0,0.3608]
[1726583268225,0.05935562,60437.0,60433.0,0.3608]
[1726583268533,0.26487566,60439.0,60436.0,0.53]
[1726583268833,0.01949856,60437.0,60436.0,0.53]
[1726583269028,0.01949856,60437.0,60429.0,0.8908]
[1726583269228,0.008,60431.0,60429.0,0.8908]
[1726583271739,0.008,60431.0,60429.0,0.8948]
[1726583272331,0.008,60431.0,60429.0,0.8908]
[1726583272633,0.008,60431.0,60429.0,0.8918]
[1726583273233,0.08519748,60439.0,60423.0,0.00248247]
[1726583273234,0.3608,60430.0,60423.0,0.00248247]
[1726583273435,0.3608,60430.0,60414.0,0.3608]
[1726583273436,0.538,60424.0,60414.0,0.3608]
[1726583273638,0.008,60415.0,60414.0,0.3608]
[1726583273828,0.008,60415.0,60411.0,0.3608]
[1726583274025,0.008,60412.0,60411.0,0.3608]
[1726583274233,0.008,60412.0,60403.0,0.00248333]
[1726583274431,0.53,60424.0,60407.0,0.3608]
[1726583274432,0.008,60411.0,60407.0,0.3608]
[1726583275332,0.008,60410.0,60407.0,0.3608]
[1726583275533,0.008,60410.0,60403.0,0.00248333]
[1726583275534,0.008,60408.0,60403.0,0.00248333]
[1726583275730,0.008,60404.0,60403.0,0.00248333]
[1726583277247,0.15108692,72896.0,60401.0,0.3608]
[1726583277248,0.05935562,60411.0,60401.0,0.3608]
[1726583277450,0.42015562,60417.0,60408.0,0.3608]
[1726583277745,0.05587512,60411.0,60408.0,0.3608]
[1726583277941,0.008,60409.0,60408.0,0.3608]
[1726583280443,0.008,60409.0,60397.0,0.00248322]
[1726583280444,0.00248339,60407.0,60397.0,0.00248322]
[1726583280631,0.00248339,60407.0,60397.0,0.08525622]
[1726583280632,0.008,60398.0,60397.0,0.08525622]
[1726583280833,0.05258661,60409.0,60395.0,1.2516]
[1726583280834,0.008,60404.0,60395.0,1.2516]
[1726583281042,0.004,60409.0,60403.0,0.3608]
[1726583281246,0.004,60409.0,60408.0,0.526316]
[1726583281435,0.004,60409.0,60408.0,1.622916]
[1726583281837,0.05935562,60431.0,60423.0,0.082737]
[1726583282143,0.59796975,60441.0,60410.0,0.082754]
[1726583282144,0.03450368,60430.0,60426.0,0.3608]
[1726583282344,0.008,60429.0,60426.0,0.3608]
[1726583282640,0.03450368,60430.0,60426.0,0.3608]
[1726583282641,0.05935562,60440.0,60428.0,0.53]
[1726583282940,0.05935562,60444.0,60439.0,0.3608]
[1726583283838,0.008,60441.0,60439.0,0.3608]
[1726583284561,0.008,60441.0,60435.0,0.0024815]
[1726583284562,0.05935562,60444.0,60440.0,0.3608]
[1726583284739,0.008,60442.0,60440.0,0.3608]
[1726583285447,0.538,60441.0,60440.0,0.3608]
[1726583285641,0.59735562,60441.0,60435.0,0.0024815]
[1726583285848,0.008,60436.0,60435.0,0.0024815]
[1726583286150,0.008,60436.0,60430.0,0.3608]
[1726583286151,0.008,60431.0,60430.0,0.32695336]
[1726583288153,0.91522733,60431.0,60419.0,0.00460242]
[1726583288449,0.008,60423.0,60419.0,0.00248242]
[1726583288655,0.008,60425.0,60422.0,0.3608]
[1726583288845,0.3608,60429.0,60422.0,0.3608]
[1726583289036,0.612726,60432.0,60419.0,0.00248242]
[1726583289037,0.008,60423.0,60419.0,0.00248242]
[1726583289346,0.008,60420.0,60419.0,0.00248242]
[1726583289541,0.008,60420.0,60419.0,0.36628242]
[1726583289952,0.1018593,60420.0,60419.0,0.00548242]
[1726583290246,0.3407182,60420.0,60408.0,0.3528]
[1726583290553,0.3407182,60420.0,60404.0,0.00248243]
[1726583291159,0.53,60415.0,60404.0,0.00248243]
[1726583291339,0.05935562,60414.0,60404.0,0.00248243]
[1726583291539,0.07579437,60414.0,60404.0,0.00248243]
[1726583291751,0.3608,60413.0,60404.0,0.00248243]
[1726583292151,0.03614786,60412.0,60404.0,0.00248243]
[1726583292341,0.34410745,60412.0,60404.0,0.01648243]
[1726583292547,0.09550348,60412.0,60404.0,0.01648243]
[1726583294447,0.03614786,60412.0,60405.0,0.082761]
[1726583294649,0.03614786,60412.0,60411.0,0.443553]
[1726583294846,0.05935562,60425.0,60412.0,0.4966]
[1726583295159,0.53,60421.0,60420.0,0.00248238]
[1726583295345,0.58935562,60421.0,60420.0,0.00248238]
[1726583295546,0.67209562,60421.0,60420.0,0.00248238]
[1726583295865,1.71873572,60421.0,60407.0,0.3608]
[1726583296154,0.08275,60414.0,60407.0,0.3608]
[1726583296359,0.53,60418.0,60405.0,0.014]
[1726583296360,0.53,60412.0,60405.0,0.014]
[1726583296560,0.53,60407.0,60405.0,0.014]
[1726583296853,0.42015562,60406.0,60389.0,0.3608]
[1726583297055,0.42673254,60406.0,60394.0,0.3608]
[1726583297249,0.05935562,60405.0,60394.0,0.3608]
[1726583297448,0.3608,60401.0,60394.0,0.3608]
[1726583297958,0.53,60399.0,60394.0,0.3608]
[1726583298152,0.05935562,60398.0,60394.0,0.3608]
[1726583298458,0.05935562,60400.0,60394.0,0.3608]
[1726583298659,0.05935562,60400.0,60394.0,0.008]
[1726583298660,0.3608,60395.0,60394.0,0.008]
[1726583298846,0.05935562,60397.0,60394.0,0.008]
[1726583299052,0.4363,60399.0,60394.0,0.008]
[1726583299053,0.3608,60396.0,60394.0,0.008]
[1726583299256,0.05935562,60398.0,60394.0,0.008]
[1726583299570,0.082781,60392.0,60385.0,0.00248381]
[1726583299750,0.612781,60392.0,60385.0,0.00240381]
[1726583299952,0.72551458,60391.0,60385.0,0.00240381]
[1726583300152,0.05935562,60390.0,60385.0,0.00240381]
[1726583300454,0.24825896,60389.0,60385.0,0.00240381]
[1726583300845,0.06235562,60398.0,60388.0,0.3608]
[1726583301050,0.06235562,60398.0,60394.0,0.001]
[1726583301051,0.007,60396.0,60394.0,0.001]
[1726583301251,0.007,60396.0,60385.0,0.00240381]
[1726583301252,0.3608,60395.0,60385.0,0.00240381]
[1726583301457,0.3608,60386.0,60376.0,0.36292]
[1726583301662,0.05935562,60389.0,60370.0,0.3608]
[1726583301850,0.082794,60382.0,60370.0,0.3608]
[1726583302056,0.05935562,60383.0,60370.0,0.3608]
[1726583302253,0.2579943,60381.0,60370.0,0.3608]
[1726583302465,0.53,60379.0,60370.0,0.3608]
[1726583302659,0.53,60379.0,60366.0,0.00248473]
[1726583302660,0.14215462,60378.0,60366.0,0.00248473]
[1726583302856,0.3608,60374.0,60366.0,0.00248473]
[1726583303168,0.082802,60376.0,60366.0,0.00248473]
[1726583303169,0.3516536,60373.0,60366.0,0.00248473]
[1726583303459,0.24971414,60373.0,60366.0,0.00248473]
[1726583303661,0.05935562,60374.0,60366.0,0.00248473]
[1726583303862,0.35219085,60372.0,60364.0,0.32695626]
[1726583304047,0.3608,60365.0,60357.0,0.3608]
[1726583304248,0.8908,60361.0,60351.0,0.36328547]
[1726583304463,0.53,60356.0,60351.0,0.36328547]
[1726583304768,0.05935562,60355.0,60351.0,0.36328547]
[1726583304948,0.26753645,60360.0,60351.0,0.36328547]
[1726583304949,0.05935562,60360.0,60351.0,0.36328547]
[1726583305348,0.83892342,60359.0,60351.0,0.36328547]
[1726583305550,0.05935562,60358.0,60351.0,0.36328547]
[1726583305858,0.53,60355.0,60351.0,0.36328547]
[1726583306060,0.05935562,60354.0,60351.0,0.36328547]
[1726583306268,0.3608,60353.0,60351.0,0.00248547]
[1726583306453,0.42015562,60353.0,60351.0,0.01148547]
[1726583306655,0.05935562,60352.0,60351.0,0.01148547]
[1726583307154,0.05935562,60358.0,60351.0,0.01148547]
[1726583307552,0.199985,60358.0,60351.0,0.01148547]
[1726583307759,0.199985,60358.0,60355.0,0.3608]
[1726583308064,0.14062938,60358.0,60355.0,0.3608]
[1726583308359,0.14062938,60358.0,60357.0,0.082828]
[1726583308550,0.53248499,60377.0,60357.0,0.082828]
[1726583308551,0.05935562,60366.0,60357.0,0.49704]
[1726583308749,0.00248499,60377.0,60376.0,0.082801]
[1726583308955,0.00248499,60377.0,60365.0,0.7216]
[1726583308956,0.00248499,60377.0,60372.0,0.443607]
[1726583309159,0.10771394,60377.0,60372.0,0.3608]
[1726583309764,0.10771394,60377.0,60371.0,0.00248462]
[1726583309969,0.3608,60372.0,60365.0,0.23787616]
[1726583311063,0.3608,60372.0,60359.0,0.53212]
[1726583311064,0.08281,60370.0,60359.0,0.00212]
[1726583311266,0.3608,60363.0,60354.0,0.082831]
[1726583311568,0.25380649,60369.0,60354.0,0.082831]
[1726583311766,0.082808,60371.0,60354.0,0.082831]
[1726583311963,0.082811,60369.0,60365.0,0.001]
[1726583312159,0.37182015,60368.0,60365.0,0.001]
[1726583312361,0.3608,60366.0,60365.0,0.001]
[1726583312965,0.002,60369.0,60353.0,0.3608]
[1726583313174,0.082831,60355.0,60353.0,0.3608]
[1726583313471,0.082831,60355.0,60317.0,0.082881]
[1726583313472,1.3298,60354.0,60333.0,0.0024862]
[1726583313659,0.53,60341.0,60333.0,0.0024862]
[1726583313855,0.53,60341.0,60300.0,0.0084]
[1726583313856,0.3608,60334.0,60321.0,0.0039]
[1726583314057,0.3608,60322.0,60321.0,0.0039]
[1726583314355,0.00248785,60326.0,60321.0,0.0039]
[1726583314571,0.00248785,60326.0,60316.0,0.53]
[1726583314768,0.00248785,60326.0,60314.0,0.3608]
[1726583315161,0.00248785,60326.0,60316.0,0.082883]
[1726583315354,0.00248785,60326.0,60313.0,0.00248701]
[1726583315558,0.00448785,60326.0,60313.0,0.00248701]
[1726583315770,0.00448785,60326.0,60314.0,0.3608]
[1726583315975,0.19008679,60325.0,60316.0,0.082883]
[1726583316155,0.19008679,60325.0,60324.0,0.3608]
[1726583316356,0.00448785,60326.0,60319.0,0.3608]
[1726583316357,0.36428785,60326.0,60319.0,0.3608]
[1726583317171,0.36428785,60326.0,60316.0,0.3688]
[1726583317567,0.00348785,60326.0,60325.0,0.3608]
[1726583318069,0.00248785,60326.0,60316.0,0.3638]
[1726583318472,0.00248785,60326.0,60321.0,0.3608]
[1726583318673,0.00248785,60326.0,60313.0,0.00248701]
[1726583318870,0.49732,60325.0,60277.0,0.0084]
[1726583319072,1.06,60314.0,60203.0,0.08715326]
[1726583319267,0.16599,60235.0,60167.0,0.083088]
[1726583319464,0.16599,60235.0,60158.0,0.02482331]
[1726583319465,0.3608,60176.0,60158.0,0.53]
[1726583319663,0.53,60200.0,60162.0,0.53]
[1726583319664,0.3608,60166.0,60162.0,0.53]
[1726583319864,0.20136948,60165.0,60136.0,0.3608]
[1726583320063,0.20136948,60165.0,60091.0,0.0083506]
[1726583320064,0.20136948,60164.0,60161.0,0.53]
[1726583320370,0.7216,60162.0,60161.0,1.1134]
[1726583320576,0.64326415,60162.0,60161.0,0.5134]
[1726583320778,0.64326415,60162.0,60161.0,1.34585147]
[1726583320981,0.64326415,60162.0,60149.0,0.53]
[1726583321271,0.16117706,60150.0,60140.0,0.53]
[1726583321573,0.14506637,60145.0,60141.0,0.3608]
[1726583321775,0.17809961,60164.0,60144.0,0.3608]
[1726583321961,0.3608,60173.0,60157.0,0.083103]
[1726583322162,0.3608,60173.0,60172.0,0.53]
[1726583322363,0.3608,60186.0,60172.0,0.53]
[1726583322664,0.18807206,60178.0,60172.0,0.53]
[1726583322868,0.3608,60186.0,60174.0,0.49856]
[1726583323071,0.3608,60186.0,60162.0,0.443896]
[1726583323072,0.3608,60181.0,60162.0,0.443896]
[1726583323267,0.00082849,60185.0,60180.0,1.01]
[1726583323469,0.3608,60186.0,60180.0,1.01]
[1726583323674,0.3608,60186.0,60181.0,0.49848]
[1726583323869,0.17809961,60211.0,60185.0,0.3608]
[1726583324072,0.30110956,60205.0,60203.0,0.53]
[1726583324270,0.083035,60206.0,60198.0,0.53]
[1726583324977,0.30110956,60203.0,60191.0,0.3608]
[1726583325280,0.3608,60200.0,60191.0,0.3608]
[1726583325775,0.3608,60208.0,60195.0,0.53]
[1726583325966,0.3608,60200.0,60195.0,0.53]
[1726583326275,0.3608,60208.0,60195.0,0.53]
[1726583326684,0.17809961,60225.0,60202.0,0.53]
[1726583326977,0.3608,60205.0,60198.0,0.53]
[1726583327165,0.3608,60203.0,60198.0,0.53]
[1726583327877,0.3608,60204.0,60198.0,0.94709926]
[1726583328075,0.3608,60209.0,60198.0,0.34709926]
[1726583328374,0.66190956,60199.0,60190.0,0.53]
[1726583328586,0.66190956,60199.0,60183.0,0.53]
[1726583328773,0.3608,60199.0,60198.0,1.01]
[1726583328969,0.3608,60214.0,60198.0,1.61]
[1726583329277,0.3608,60221.0,60213.0,0.53]
[1726583329679,0.3608,60235.0,60220.0,0.52984]
[1726583329978,0.3608,60235.0,60226.0,0.53]
[1726583330180,0.00173285,60226.0,60217.0,0.3608]
[1726583330577,0.3608,60223.0,60212.0,0.3608]
[1726583330783,0.3608,60223.0,60222.0,0.12]
[1726583331180,0.66190956,60223.0,60222.0,0.12]
[1726583331684,0.30110956,60223.0,60222.0,0.12]
[1726583331875,0.00173285,60226.0,60212.0,0.3608]
[1726583332079,0.30284241,60226.0,60212.0,0.3608]
[1726583332386,0.3608,60225.0,60212.0,0.3608]
[1726583332579,0.3608,60225.0,60211.0,0.53]
[1726583332580,0.30110956,60216.0,60211.0,0.00148]
[1726583332780,0.3608,60219.0,60215.0,0.03]
[1726583333572,0.3608,60219.0,60216.0,0.083021]
[1726583333782,0.3608,60219.0,60215.0,0.63148]
[1726583333981,0.17809961,60216.0,60210.0,0.00148]
[1726583334176,0.3608,60212.0,60199.0,0.3608]
[1726583334375,0.14426158,60203.0,60199.0,0.083044]
[1726583334583,0.34458727,60202.0,60199.0,0.083044]
[1726583334789,0.14426158,60200.0,60199.0,0.083044]
[1726583334990,0.12428818,60200.0,60199.0,0.683044]
[1726583335279,0.3608,60207.0,60199.0,1.09836]
[1726583335280,0.35628796,60203.0,60199.0,1.09836]
[1726583335481,0.19599732,60202.0,60193.0,0.544353]
[1726583335683,0.3608,60207.0,60193.0,0.544353]
[1726583335684,0.14435172,60197.0,60193.0,0.544353]
[1726583335871,0.14435172,60194.0,60193.0,0.083053]
[1726583336072,0.19599732,60194.0,60193.0,0.083053]
[1726583336378,0.34034904,60194.0,60193.0,1.181453]
[1726583336583,0.12922209,60194.0,60175.0,0.3608]
[1726583336885,0.12840934,60177.0,60175.0,0.443878]
[1726583337077,0.19332917,60176.0,60175.0,0.443878]
[1726583337278,0.19330302,60176.0,60175.0,1.043878]
[1726583337487,0.12428818,60176.0,60175.0,2.072438]
[1726583337781,0.02238876,60176.0,60175.0,2.072438]
[1726583337982,0.12846526,60178.0,60177.0,0.083075]
[1726583338284,0.12857179,60181.0,60175.0,0.89204]
[1726583338487,0.12857261,60180.0,60175.0,0.8908]
[1726583338677,0.48937261,60183.0,60175.0,0.3608]
[1726583338881,0.3608,60183.0,60181.0,0.083069]
[1726583339073,0.06810335,60182.0,60175.0,0.443878]
[1726583339286,0.3608,60176.0,60175.0,0.083078]
[1726583339585,0.3608,60176.0,60166.0,0.3608]
[1726583339783,0.3608,60176.0,60163.0,0.53]
[1726583339784,0.14492244,60169.0,60164.0,0.3608]
[1726583339975,0.3608,60165.0,60163.0,0.01373735]
[1726583340290,0.3608,60165.0,60163.0,0.083094]
[1726583340291,0.06055678,60164.0,60163.0,0.083094]
[1726583340481,1.28967154,60164.0,60148.0,0.01232907]
[1726583340684,0.14520053,60152.0,60151.0,0.083111]
[1726583340876,0.1452019,60156.0,60154.0,0.083107]
[1726583341077,0.77738895,60155.0,60152.0,0.08311]
[1726583341386,0.30110956,60151.0,60141.0,0.083125]
[1726583341585,0.30110956,60151.0,60134.0,0.083133]
[1726583341586,0.30110956,60139.0,60134.0,0.083133]
[1726583341786,0.7216,60142.0,60133.0,0.083136]
[1726583341787,0.3608,60135.0,60133.0,0.083136]
[1726583342176,0.3608,60135.0,60128.0,0.083142]
[1726583342490,0.3608,60129.0,60128.0,0.083142]
[1726583342682,0.3608,60129.0,60125.0,0.00116]
[1726583342877,0.3608,60129.0,60118.0,0.53]
[1726583343079,0.3608,60138.0,60124.0,0.53]
[1726583343080,0.3608,60131.0,60124.0,0.53]
[1726583343387,0.3608,60131.0,60130.0,0.53]
[1726583343576,0.7216,60131.0,60130.0,0.08314]
[1726583343776,0.7216,60131.0,60130.0,1.09883027]
[1726583343980,0.270314,60131.0,60130.0,1.18206]
[1726583344300,0.4656,60159.0,60119.0,0.3608]
[1726583344301,0.273417,60136.0,60135.0,0.083133]
[1726583344488,0.273417,60136.0,60119.0,0.01203754]
[1726583344679,0.16133392,60156.0,60115.0,0.3608]
[1726583344680,0.3608,60131.0,60129.0,0.083141]
[1726583344879,0.3608,60131.0,60115.0,0.3608]
[1726583345083,0.3608,60131.0,60116.0,0.08316]
[1726583345084,0.3608,60118.0,60116.0,0.08316]